[Event "Velká cena Novohradska - A"]
[Site "Nové Hrady, Czech Republic"]
[Date "2024.10.12"]
[Round "5.3"]
[White "Hokr, Matyáš"]
[Black "Dudarec, Elias"]
[Result "0-1"]
[TimeControl "2x20min+10s/tah"]
[WhiteFideId "23734663"]
[BlackFideId "23714930"]
[WhiteElo "1534"]
[BlackElo "1588"]

1. e4 {[%clk 00:20:14]} {[%emt 00:00:06]} c5 {[%clk 00:20:12]} {[%emt
00:00:09]} 2. c3 {[%clk 00:20:17]} {[%emt 00:00:06]} Nf6 {[%clk 00:20:20]}
{[%emt 00:00:03]} 3. e5 {[%clk 00:20:13]} {[%emt 00:00:14]} Nd5 {[%clk
00:20:29]} 4. d4 {[%clk 00:20:21]} {[%emt 00:00:02]} cxd4 {[%clk 00:20:37]}
{[%emt 00:00:02]} 5. cxd4 {[%clk 00:20:29]} {[%emt 00:00:02]} Nc6 {[%clk
00:20:37]} {[%emt 00:00:10]} 6. Nc3 {[%clk 00:20:28]} {[%emt 00:00:10]} Nxc3
{[%clk 00:20:35]} {[%emt 00:00:13]} 7. bxc3 {[%clk 00:20:36]} {[%emt 00:00:01]}
d6 {[%clk 00:20:42]} {[%emt 00:00:04]} 8. exd6 {[%clk 00:20:35]} {[%emt
00:00:11]} Qxd6 {[%clk 00:20:47]} {[%emt 00:00:04]} 9. Nf3 {[%clk 00:20:40]}
{[%emt 00:00:05]} g6 {[%clk 00:20:51]} {[%emt 00:00:06]} 10. Bd3 {[%clk
00:20:32]} {[%emt 00:00:17]} Bg7 {[%clk 00:20:58]} {[%emt 00:00:04]} 11. O-O
{[%clk 00:20:37]} {[%emt 00:00:05]} O-O {[%clk 00:21:04]} {[%emt 00:00:04]} 12.
Re1 {[%clk 00:20:07]} {[%emt 00:00:39]} Bg4 {[%clk 00:21:04]} {[%emt 00:00:12]}
13. h3 {[%clk 00:20:04]} {[%emt 00:00:12]} Bxf3 {[%clk 00:18:40]} {[%emt
00:02:34]} 14. Qxf3 {[%clk 00:20:08]} {[%emt 00:00:05]} e5 {[%clk 00:18:46]}
{[%emt 00:00:05]} 15. d5 {[%clk 00:17:07]} {[%emt 00:03:11]} Ne7 {[%clk
00:18:48]} {[%emt 00:00:08]} 16. c4 {[%clk 00:16:30]} {[%emt 00:00:47]} f5
{[%clk 00:16:24]} {[%emt 00:02:34]} 17. Qg3 {[%clk 00:14:54]} {[%emt 00:01:46]}
f4 {[%clk 00:13:25]} {[%emt 00:03:10]} 18. Qf3 {[%clk 00:14:54]} {[%emt
00:00:09]} Nf5 {[%clk 00:13:06]} {[%emt 00:00:29]} 19. Bxf5 {[%clk 00:14:44]}
{[%emt 00:00:20]} gxf5 {[%clk 00:12:16]} {[%emt 00:01:00]} 20. Ba3 {[%clk
00:13:49]} {[%emt 00:01:06]} Qh6 {[%clk 00:08:52]} {[%emt 00:03:34]} 21. Bxf8
{[%clk 00:13:06]} {[%emt 00:00:53]} Rxf8 {[%clk 00:09:00]} 22. Rab1 {[%clk
00:12:23]} {[%emt 00:00:53]} e4 {[%clk 00:09:05]} {[%emt 00:00:07]} 23. Qe2
{[%clk 00:12:17]} {[%emt 00:00:15]} f3 {[%clk 00:08:33]} {[%emt 00:00:42]} 24.
gxf3 {[%clk 00:11:24]} {[%emt 00:01:03]} Qxh3 {[%clk 00:08:21]} {[%emt
00:00:22]} 25. Qf1 {[%clk 00:11:05]} {[%emt 00:00:29]} Qh4 {[%clk 00:05:35]}
{[%emt 00:02:57]} 26. fxe4 {[%clk 00:09:32]} {[%emt 00:01:42]} f4 {[%clk
00:04:44]} {[%emt 00:01:01]} 27. Rb3 {[%clk 00:07:02]} {[%emt 00:02:40]} f3
{[%clk 00:04:46]} {[%emt 00:00:08]} 28. Ree3 {[%clk 00:06:59]} {[%emt
00:00:14]} Qg4+ {[%clk 00:04:55]} 29. Kh1 {[%clk 00:07:02]} {[%emt 00:00:08]}
Rf6 {[%clk 00:04:33]} {[%emt 00:00:31]} 30. Rxf3 {[%clk 00:07:02]} {[%emt
00:00:10]} Rxf3 {[%clk 00:04:11]} {[%emt 00:00:33]} 31. Rxf3 {[%clk 00:07:10]}
{[%emt 00:00:01]} Qxf3+ {[%clk 00:04:19]} {[%emt 00:00:02]} 32. Qg2 {[%clk
00:07:18]} {[%emt 00:00:02]} Qd1+ {[%clk 00:04:13]} {[%emt 00:00:17]} 33. Qg1
{[%clk 00:07:09]} {[%emt 00:00:18]} Qd4 {[%clk 00:03:49]} {[%emt 00:00:35]} 34.
Qg4 {[%clk 00:05:57]} {[%emt 00:01:21]} Qxf2 {[%clk 00:03:22]} {[%emt
00:00:37]} 35. Qc8+ {[%clk 00:05:54]} {[%emt 00:00:14]} Qf8 {[%clk 00:03:23]}
{[%emt 00:00:08]} 36. Qxb7 {[%clk 00:05:37]} {[%emt 00:00:26]} Qf1+ {[%clk
00:03:29]} {[%emt 00:00:05]} 37. Kh2 {[%clk 00:05:42]} {[%emt 00:00:06]} Be5#
{[%clk 00:03:38]} 0-1

[Event "Velká cena Novohradska - A"]
[Site "Nové Hrady, Czech Republic"]
[Date "2024.10.12"]
[Round "5.4"]
[White "Čech, Nicolas"]
[Black "Rendl, Luboš"]
[Result "0-1"]
[TimeControl "2x20min+10s/tah"]
[WhiteFideId "23764228"]
[BlackFideId "23750197"]
[WhiteElo "1626"]
[BlackElo "1860"]

1. e4 {[%clk 00:20:11]} {[%emt 00:00:08]} c5 {[%clk 00:20:17]} {[%emt
00:00:03]} 2. Nf3 {[%clk 00:20:19]} {[%emt 00:00:03]} Nc6 {[%clk 00:20:26]} 3.
d4 {[%clk 00:20:26]} {[%emt 00:00:03]} cxd4 {[%clk 00:20:34]} {[%emt 00:00:02]}
4. Nxd4 {[%clk 00:20:35]} {[%emt 00:00:03]} e6 {[%clk 00:20:43]} 5. Be3 {[%clk
00:20:27]} {[%emt 00:00:18]} a6 {[%clk 00:20:42]} {[%emt 00:00:11]} 6. Nc3
{[%clk 00:19:53]} {[%emt 00:00:44]} Qc7 {[%clk 00:20:50]} 7. Nxc6 {[%clk
00:19:38]} {[%emt 00:00:27]} dxc6 {[%clk 00:20:53]} {[%emt 00:00:07]} 8. Be2
{[%clk 00:18:11]} {[%emt 00:01:38]} Nf6 {[%clk 00:20:47]} {[%emt 00:00:15]} 9.
O-O {[%clk 00:18:15]} {[%emt 00:00:05]} Be7 {[%clk 00:20:53]} {[%emt 00:00:04]}
10. f4 {[%clk 00:17:57]} {[%emt 00:00:29]} O-O {[%clk 00:20:52]} {[%emt
00:00:11]} 11. Bf3 {[%clk 00:18:00]} {[%emt 00:00:07]} Rd8 {[%clk 00:20:00]}
{[%emt 00:01:02]} 12. Qe2 {[%clk 00:18:00]} {[%emt 00:00:10]} e5 {[%clk
00:17:29]} {[%emt 00:02:40]} 13. f5 {[%clk 00:17:19]} {[%emt 00:00:51]} b5
{[%clk 00:17:22]} {[%emt 00:00:18]} 14. Rad1 {[%clk 00:16:16]} {[%emt
00:01:13]} Bb7 {[%clk 00:17:14]} {[%emt 00:00:18]} 15. a3 {[%clk 00:15:32]}
{[%emt 00:00:53]} c5 {[%clk 00:15:36]} {[%emt 00:01:49]} 16. g4 {[%clk
00:12:47]} {[%emt 00:02:55]} Rd4 {[%clk 00:13:28]} {[%emt 00:02:18]} 17. Bxd4
{[%clk 00:11:35]} {[%emt 00:01:22]} exd4 {[%clk 00:13:34]} {[%emt 00:00:03]} 18.
e5 {[%clk 00:09:33]} {[%emt 00:02:12]} dxc3 {[%clk 00:12:59]} {[%emt 00:00:45]}
19. Bxb7 {[%clk 00:09:17]} {[%emt 00:00:27]} Qxb7 {[%clk 00:12:59]} {[%emt
00:00:10]} 20. exf6 {[%clk 00:09:02]} {[%emt 00:00:24]} Bxf6 {[%clk 00:13:02]}
{[%emt 00:00:07]} 21. Qf3 {[%clk 00:08:32]} {[%emt 00:00:41]} Qxf3 {[%clk
00:12:49]} {[%emt 00:00:23]} 22. Rxf3 {[%clk 00:08:39]} {[%emt 00:00:03]} cxb2
{[%clk 00:12:57]} {[%emt 00:00:02]} 23. c3 {[%clk 00:08:31]} {[%emt 00:00:18]}
Re8 {[%clk 00:12:39]} {[%emt 00:00:27]} 24. Kf1 {[%clk 00:05:56]} {[%emt
00:02:46]} Bg5 {[%clk 00:09:25]} {[%emt 00:03:24]} 25. Rb1 {[%clk 00:05:28]}
{[%emt 00:00:39]} Bc1 {[%clk 00:09:14]} {[%emt 00:00:20]} 26. Kf2 {[%clk
00:03:09]} {[%emt 00:02:29]} h6 {[%clk 00:08:46]} {[%emt 00:00:38]} 27. Rd3
{[%clk 00:02:13]} {[%emt 00:01:06]} Re4 {[%clk 00:08:47]} {[%emt 00:00:09]} 28.
h3 {[%clk 00:02:04]} {[%emt 00:00:19]} Ra4 {[%clk 00:08:40]} {[%emt 00:00:17]}
29. Ke2 {[%clk 00:01:19]} {[%emt 00:00:55]} Rxa3 {[%clk 00:08:26]} {[%emt
00:00:24]} 30. Kd1 {[%clk 00:01:22]} {[%emt 00:00:07]} b4 {[%clk 00:07:19]}
{[%emt 00:01:16]} 31. Rd8+ {[%clk 00:01:16]} {[%emt 00:00:17]} Kh7 {[%clk
00:07:14]} {[%emt 00:00:16]} 32. cxb4 {[%clk 00:00:41]} {[%emt 00:00:45]} cxb4
{[%clk 00:07:22]} {[%emt 00:00:02]} 33. Kc2 {[%clk 00:00:24]} {[%emt 00:00:26]}
b3+ {[%clk 00:07:24]} {[%emt 00:00:07]} 34. Kc3 {[%clk 00:00:22]} {[%emt
00:00:12]} Ra1 {[%clk 00:07:18]} {[%emt 00:00:16]} 35. Rxb2 {[%clk 00:00:31]}
{[%emt 00:00:02]} Bxb2+ {[%clk 00:05:18]} {[%emt 00:02:10]} 36. Kxb2 {[%clk
00:00:40]} Rh1 {[%clk 00:05:26]} {[%emt 00:00:03]} 37. Rd3 {[%clk 00:00:45]}
{[%emt 00:00:05]} f6 {[%clk 00:04:31]} {[%emt 00:01:04]} 38. Rxb3 {[%clk
00:00:30]} {[%emt 00:00:25]} h5 {[%clk 00:04:03]} {[%emt 00:00:38]} 39. Kc2
{[%clk 00:00:14]} {[%emt 00:00:27]} Kh6 {[%clk 00:03:29]} {[%emt 00:00:43]} 40.
Kd2 {[%clk 00:00:17]} {[%emt 00:00:08]} Rh2+ {[%clk 00:03:06]} {[%emt
00:00:34]} 41. Ke1 {[%clk 00:00:25]} {[%emt 00:00:02]} hxg4 {[%clk 00:02:46]}
{[%emt 00:00:29]} 42. hxg4 {[%clk 00:00:33]} {[%emt 00:00:07]} Kg5 {[%clk
00:02:55]} 43. Rb4 {[%clk 00:00:15]} {[%emt 00:00:25]} Ra2 {[%clk 00:02:51]}
{[%emt 00:00:13]} 44. Kf1 {[%clk 00:00:15]} {[%emt 00:00:10]} a5 {[%clk
00:02:51]} {[%emt 00:00:10]} 45. Rb7 {[%clk 00:00:24]} {[%emt 00:00:02]} Kxg4
{[%clk 00:02:58]} {[%emt 00:00:02]} 46. Rxg7+ {[%clk 00:00:32]} {[%emt
00:00:02]} Kxf5 {[%clk 00:03:07]} 47. Ra7 {[%clk 00:00:32]} {[%emt 00:00:10]}
Ke4 {[%clk 00:02:55]} {[%emt 00:00:21]} 48. Ra8 {[%clk 00:00:39]} {[%emt
00:00:04]} f5 {[%clk 00:02:59]} {[%emt 00:00:06]} 49. Re8+ {[%clk 00:00:47]}
{[%emt 00:00:02]} Kf3 {[%clk 00:02:51]} {[%emt 00:00:19]} 50. Kg1 {[%clk
00:00:34]} {[%emt 00:00:22]} f4 {[%clk 00:02:20]} {[%emt 00:00:41]} 51. Rc8
{[%clk 00:00:32]} {[%emt 00:00:12]} Ra3 {[%clk 00:02:12]} {[%emt 00:00:18]} 52.
Rc7 {[%clk 00:00:25]} {[%emt 00:00:17]} a4 {[%clk 00:02:11]} {[%emt 00:00:12]}
53. Rc4 {[%clk 00:00:25]} {[%emt 00:00:09]} Ke3 {[%clk 00:02:02]} {[%emt
00:00:19]} 54. Rc8 {[%clk 00:00:32]} {[%emt 00:00:03]} Ra1+ {[%clk 00:01:37]}
{[%emt 00:00:35]} 55. Kh2 {[%clk 00:00:14]} {[%emt 00:00:28]} f3 {[%clk
00:01:18]} {[%emt 00:00:28]} 56. Re8+ {[%clk 00:00:16]} {[%emt 00:00:09]} Kf2
{[%clk 00:01:08]} {[%emt 00:00:20]} 57. Rc8 {[%clk 00:00:25]} Kf1 {[%clk
00:00:44]} {[%emt 00:00:34]} 58. Rc3 {[%clk 00:00:21]} {[%emt 00:00:15]} f2
{[%clk 00:00:44]} {[%emt 00:00:10]} 59. Rc8 {[%clk 00:00:20]} {[%emt 00:00:11]}
Ke2 {[%clk 00:00:43]} {[%emt 00:00:10]} 60. Re8+ {[%clk 00:00:23]} {[%emt
00:00:08]} Kd3 {[%clk 00:00:49]} {[%emt 00:00:03]} 0-1

[Event "Velká cena Novohradska - A"]
[Site "Nové Hrady, Czech Republic"]
[Date "2024.10.12"]
[Round "5.5"]
[White "Mountassir, Karim"]
[Black "Slonek, Richard"]
[Result "0-1"]
[TimeControl "2x20min+10s/tah"]
[WhiteFideId "23746327"]
[BlackFideId "23744553"]
[WhiteElo "1614"]
[BlackElo "1524"]

1. e4 {[%clk 00:20:19]} {[%emt 00:03:31]} e6 {[%clk 00:20:18]} {[%emt
00:00:02]} 2. d4 {[%clk 00:20:24]} {[%emt 00:00:04]} d5 {[%clk 00:20:27]}
{[%emt 00:00:02]} 3. exd5 {[%clk 00:20:33]} {[%emt 00:00:02]} exd5 {[%clk
00:20:36]} 4. Bd3 {[%clk 00:20:37]} {[%emt 00:00:06]} Nf6 {[%clk 00:20:41]}
{[%emt 00:00:05]} 5. Nf3 {[%clk 00:20:36]} {[%emt 00:00:11]} Bd6 {[%clk
00:20:47]} {[%emt 00:00:03]} 6. Bg5 {[%clk 00:20:17]} {[%emt 00:00:29]} O-O
{[%clk 00:20:42]} {[%emt 00:00:15]} 7. O-O {[%clk 00:20:19]} {[%emt 00:00:09]}
h6 {[%clk 00:20:49]} {[%emt 00:00:03]} 8. Bc1 {[%clk 00:19:12]} {[%emt
00:01:17]} Re8 {[%clk 00:20:53]} {[%emt 00:00:05]} 9. Re1 {[%clk 00:19:02]}
{[%emt 00:00:21]} Nc6 {[%clk 00:20:54]} {[%emt 00:00:09]} 10. h3 {[%clk
00:18:54]} {[%emt 00:00:18]} Be6 {[%clk 00:20:56]} {[%emt 00:00:07]} 11. c3
{[%clk 00:19:02]} {[%emt 00:00:03]} Qd7 {[%clk 00:20:57]} {[%emt 00:00:08]} 12.
Nbd2 {[%clk 00:18:56]} {[%emt 00:00:17]} Bf5 {[%clk 00:20:44]} {[%emt
00:00:23]} 13. Bb5 {[%clk 00:18:51]} {[%emt 00:00:15]} Rxe1+ {[%clk 00:20:17]}
{[%emt 00:00:36]} 14. Nxe1 {[%clk 00:18:45]} {[%emt 00:00:17]} Ne4 {[%clk
00:20:06]} {[%emt 00:00:20]} 15. Qf3 {[%clk 00:18:10]} {[%emt 00:00:45]} Re8
{[%clk 00:19:47]} {[%emt 00:00:29]} 16. Nd3 {[%clk 00:17:32]} {[%emt 00:00:49]}
Ng5 {[%clk 00:19:26]} {[%emt 00:00:31]} 17. Qh5 {[%clk 00:17:06]} {[%emt
00:00:35]} a6 {[%clk 00:17:13]} {[%emt 00:02:23]} 18. Nc5 {[%clk 00:15:04]}
{[%emt 00:02:13]} Bxc5 {[%clk 00:16:45]} {[%emt 00:00:38]} 19. Bxc6 {[%clk
00:15:11]} {[%emt 00:00:02]} Qxc6 {[%clk 00:16:38]} {[%emt 00:00:17]} 20. dxc5
{[%clk 00:15:17]} {[%emt 00:00:04]} Qxc5 {[%clk 00:16:25]} {[%emt 00:00:25]} 21.
h4 {[%clk 00:14:29]} {[%emt 00:00:56]} Re1+ {[%clk 00:16:12]} {[%emt 00:00:24]}
22. Nf1 {[%clk 00:13:50]} {[%emt 00:00:49]} Qc4 {[%clk 00:15:49]} {[%emt
00:00:32]} 23. hxg5 {[%clk 00:13:24]} {[%emt 00:00:37]} Qxf1+ {[%clk 00:15:56]}
{[%emt 00:00:03]} 24. Kh2 {[%clk 00:13:30]} {[%emt 00:00:02]} Qh1+ {[%emt
00:00:12]} 25. Kg3 {[%clk 00:13:29]} {[%emt 00:00:02]} Qxh5 {[%clk 00:16:13]}
{[%emt 00:00:02]} 0-1

[Event "Velká cena Novohradska - A"]
[Site "Nové Hrady, Czech Republic"]
[Date "2024.10.12"]
[Round "5.6"]
[White "Polanský, Matěj"]
[Black "Ponomarenko, Marko"]
[Result "1-0"]
[TimeControl "2x20min+10s/tah"]
[WhiteFideId "23741872"]
[BlackFideId "23777931"]
[WhiteElo "1475"]
[BlackElo "1498"]

1. e4 {[%clk 00:20:19]} {[%emt 00:02:53]} e5 {[%clk 00:20:19]} 2. Nc3 {[%clk
00:20:26]} {[%emt 00:00:04]} Nc6 {[%clk 00:20:20]} {[%emt 00:00:09]} 3. f4
{[%clk 00:20:21]} {[%emt 00:00:14]} exf4 {[%clk 00:20:25]} {[%emt 00:00:05]} 4.
Nf3 {[%clk 00:20:29]} {[%emt 00:00:02]} Bb4 {[%clk 00:20:29]} {[%emt 00:00:07]}
5. d4 {[%clk 00:20:16]} {[%emt 00:00:23]} d6 {[%clk 00:20:30]} {[%emt
00:00:09]} 6. Bxf4 {[%clk 00:20:12]} {[%emt 00:00:14]} Bg4 {[%clk 00:20:28]}
{[%emt 00:00:12]} 7. a3 {[%clk 00:20:07]} {[%emt 00:00:15]} Bxc3+ {[%clk
00:20:18]} {[%emt 00:00:19]} 8. bxc3 {[%clk 00:20:13]} {[%emt 00:00:05]} Nf6
{[%clk 00:20:14]} {[%emt 00:00:14]} 9. Bd3 {[%clk 00:19:18]} {[%emt 00:01:06]}
O-O {[%clk 00:19:58]} {[%emt 00:00:25]} 10. O-O {[%clk 00:19:22]} {[%emt
00:00:06]} Re8 {[%clk 00:19:46]} {[%emt 00:00:21]} 11. d5 {[%clk 00:18:17]}
{[%emt 00:01:16]} Ne5 {[%clk 00:19:40]} {[%emt 00:00:16]} 12. Bxe5 {[%clk
00:18:07]} {[%emt 00:00:19]} dxe5 {[%clk 00:19:49]} {[%emt 00:00:02]} 13. Qe1
{[%clk 00:18:03]} {[%emt 00:00:14]} c6 {[%clk 00:19:35]} {[%emt 00:00:24]} 14.
dxc6 {[%clk 00:17:51]} {[%emt 00:00:22]} bxc6 {[%clk 00:19:43]} {[%emt
00:00:02]} 15. Rb1 {[%clk 00:17:39]} {[%emt 00:00:22]} Rb8 {[%clk 00:19:51]}
{[%emt 00:00:02]} 16. Rxb8 {[%clk 00:17:22]} {[%emt 00:00:27]} Qxb8 {[%clk
00:19:59]} {[%emt 00:00:02]} 17. Qb1 {[%clk 00:16:50]} {[%emt 00:00:41]} Qxb1
{[%clk 00:20:05]} {[%emt 00:00:05]} 18. Rxb1 {[%clk 00:16:57]} {[%emt
00:00:03]} Bxf3 {[%clk 00:20:11]} {[%emt 00:00:04]} 19. gxf3 {[%clk 00:17:05]}
{[%emt 00:00:03]} h6 {[%clk 00:19:54]} {[%emt 00:00:26]} 20. Rb7 {[%clk
00:16:27]} {[%emt 00:00:47]} a5 {[%clk 00:19:59]} {[%emt 00:00:06]} 21. Ra7
{[%clk 00:16:08]} {[%emt 00:00:29]} Nh5 {[%clk 00:19:56]} {[%emt 00:00:13]} 22.
Rxa5 {[%clk 00:15:59]} {[%emt 00:00:19]} Nf4 {[%clk 00:20:01]} {[%emt
00:00:04]} 23. Kf2 {[%clk 00:15:57]} {[%emt 00:00:13]} f6 {[%clk 00:20:07]}
{[%emt 00:00:04]} 24. Rc5 {[%clk 00:15:36]} {[%emt 00:00:31]} Ra8 {[%clk
00:19:49]} {[%emt 00:00:28]} 25. Rxc6 {[%clk 00:15:13]} {[%emt 00:00:33]} Rxa3
{[%clk 00:19:55]} {[%emt 00:00:03]} 26. Ke3 {[%clk 00:14:52]} {[%emt 00:00:32]}
Ra2 {[%clk 00:19:56]} {[%emt 00:00:08]} 27. Bc4+ {[%clk 00:14:52]} {[%emt
00:00:11]} Kh7 {[%clk 00:20:01]} {[%emt 00:00:05]} 28. Bxa2 {[%clk 00:14:57]}
{[%emt 00:00:05]} 1-0

[Event "Velká cena Novohradska - A"]
[Site "Nové Hrady, Czech Republic"]
[Date "2024.10.12"]
[Round "5.7"]
[White "Borecký, Andrej"]
[Black "Hejda, Ondřej"]
[Result "1-0"]
[TimeControl "2x20min+10s/tah"]
[WhiteFideId "23752670"]
[BlackFideId "23713623"]
[WhiteElo "1778"]
[BlackElo "1702"]

1. e4 {[%clk 00:20:18]} d5 {[%clk 00:20:17]} {[%emt 00:00:03]} 2. exd5 {[%clk
00:20:26]} {[%emt 00:00:03]} Qxd5 {[%clk 00:20:24]} {[%emt 00:00:03]} 3. Nc3
{[%clk 00:20:35]} {[%emt 00:00:02]} Qa5 {[%clk 00:20:31]} {[%emt 00:00:02]} 4.
d4 {[%clk 00:20:42]} {[%emt 00:00:03]} c6 {[%clk 00:20:38]} {[%emt 00:00:04]} 5.
Nf3 {[%clk 00:20:48]} {[%emt 00:00:03]} Bg4 {[%clk 00:20:38]} {[%emt 00:00:10]}
6. h3 {[%clk 00:20:54]} {[%emt 00:00:04]} Bh5 {[%clk 00:20:46]} {[%emt
00:00:02]} 7. g4 {[%clk 00:20:58]} {[%emt 00:00:05]} Bg6 {[%clk 00:20:54]}
{[%emt 00:00:02]} 8. Ne5 {[%clk 00:20:52]} {[%emt 00:00:16]} e6 {[%clk
00:20:13]} {[%emt 00:00:52]} 9. Bg2 {[%clk 00:20:09]} {[%emt 00:00:53]} Nf6
{[%clk 00:19:39]} {[%emt 00:00:44]} 10. O-O {[%clk 00:19:08]} {[%emt 00:01:11]}
Bd6 {[%clk 00:19:16]} {[%emt 00:00:32]} 11. f4 {[%clk 00:19:06]} {[%emt
00:00:14]} Nbd7 {[%clk 00:18:29]} {[%emt 00:00:56]} 12. Qf3 {[%clk 00:12:11]}
{[%emt 00:07:05]} O-O-O {[%clk 00:17:46]} {[%emt 00:00:53]} 13. Nxc6 {[%clk
00:07:49]} {[%emt 00:04:32]} bxc6 {[%clk 00:16:00]} {[%emt 00:01:56]} 14. Qxc6+
{[%clk 00:07:57]} {[%emt 00:00:02]} Qc7 {[%clk 00:16:04]} {[%emt 00:00:06]} 15.
Qa6+ {[%clk 00:06:26]} {[%emt 00:01:41]} Kb8 {[%clk 00:15:50]} {[%emt
00:00:24]} 16. Nb5 {[%clk 00:06:32]} {[%emt 00:00:04]} Qb6 {[%emt 00:01:30]} 17.
Qxb6+ {[%clk 00:05:53]} {[%emt 00:00:47]} Nxb6 {[%clk 00:14:37]} {[%emt
00:00:04]} 18. Nxd6 {[%clk 00:06:02]} {[%emt 00:00:02]} Rxd6 {[%clk 00:14:40]}
{[%emt 00:00:08]} 19. f5 {[%clk 00:06:10]} {[%emt 00:00:01]} Rxd4 {[%clk
00:12:15]} {[%emt 00:02:32]} 20. fxg6 {[%clk 00:05:54]} {[%emt 00:00:29]} hxg6
{[%clk 00:12:18]} {[%emt 00:00:07]} 21. Bf4+ {[%clk 00:05:43]} {[%emt
00:00:19]} Kc8 {[%clk 00:12:07]} {[%emt 00:00:21]} 22. Be5 {[%clk 00:05:21]}
{[%emt 00:00:34]} Rd2 {[%clk 00:10:35]} {[%emt 00:01:40]} 23. Bxf6 {[%clk
00:05:12]} {[%emt 00:00:21]} gxf6 {[%clk 00:10:18]} {[%emt 00:00:28]} 24. Rxf6
{[%clk 00:05:19]} {[%emt 00:00:02]} Rxc2 {[%clk 00:09:46]} {[%emt 00:00:42]} 25.
Rxf7 {[%clk 00:05:25]} {[%emt 00:00:04]} Rxb2 {[%clk 00:09:05]} {[%emt
00:00:51]} 26. Rxa7 {[%clk 00:05:32]} {[%emt 00:00:02]} Rd8 {[%clk 00:08:32]}
{[%emt 00:00:44]} 27. Rc1+ {[%clk 00:05:20]} {[%emt 00:00:21]} Kb8 {[%clk
00:08:04]} {[%emt 00:00:39]} 28. Rb7+ {[%clk 00:05:29]} {[%emt 00:00:02]} Ka8
{[%clk 00:07:55]} {[%emt 00:00:18]} 29. Rxb6+ {[%clk 00:05:33]} {[%emt
00:00:06]} 1-0

[Event "Velká cena Novohradska - A"]
[Site "Nové Hrady, Czech Republic"]
[Date "2024.10.12"]
[Round "6.1"]
[White "Dudarec, Elias"]
[Black "Garabik, Marek"]
[Result "0-1"]
[TimeControl "2x20min+10s/tah"]
[WhiteFideId "23714930"]
[BlackFideId "23717742"]
[WhiteElo "1588"]
[BlackElo "1925"]

1. e4 {[%clk 00:20:18]} e6 {[%clk 00:20:20]} 2. Nf3 {[%clk 00:20:06]} d5 {[%clk
00:20:28]} 3. e5 {[%clk 00:20:15]} c5 {[%clk 00:20:37]} 4. b4 {[%clk 00:20:24]}
b6 {[%clk 00:19:44]} 5. bxc5 {[%clk 00:19:48]} bxc5 {[%clk 00:19:51]} 6. d4
{[%clk 00:19:34]} Qb6 {[%clk 00:19:50]} 7. c3 {[%clk 00:19:04]} Ba6 {[%clk
00:19:28]} 8. Bxa6 {[%clk 00:18:43]} Qxa6 {[%clk 00:19:36]} 9. Qe2 {[%clk
00:17:30]} Qxe2+ {[%clk 00:19:44]} 10. Kxe2 {[%clk 00:17:39]} Nd7 {[%clk
00:19:30]} 11. Ba3 {[%clk 00:17:36]} Nh6 {[%clk 00:18:44]} 12. Nbd2 {[%clk
00:16:40]} c4 {[%clk 00:14:47]} 13. Bxf8 {[%clk 00:16:23]} {[%emt 00:00:25]}
Rxf8 {[%clk 00:14:56]} 14. Ng5 {[%clk 00:14:03]} {[%emt 00:02:32]} Rh8 {[%clk
00:13:05]} {[%emt 00:02:00]} 15. Rab1 {[%clk 00:13:56]} {[%emt 00:00:18]} Ke7
{[%clk 00:13:13]} {[%emt 00:00:01]} 16. Rb7 {[%clk 00:13:45]} {[%emt 00:00:21]}
f6 {[%clk 00:13:21]} {[%emt 00:00:02]} 17. Ngf3 {[%clk 00:13:41]} {[%emt
00:00:14]} Rhb8 {[%clk 00:13:27]} {[%emt 00:00:05]} 18. Rhb1 {[%clk 00:13:25]}
{[%emt 00:00:25]} Nf7 {[%clk 00:12:52]} {[%emt 00:00:46]} 19. Ke3 {[%clk
00:08:29]} {[%emt 00:05:05]} Rxb7 {[%clk 00:12:28]} {[%emt 00:00:34]} 20. Rxb7
{[%clk 00:08:36]} {[%emt 00:00:04]} Nd8 {[%clk 00:12:36]} 21. Rb1 {[%clk
00:07:44]} {[%emt 00:01:02]} Nc6 {[%clk 00:12:36]} {[%emt 00:00:11]} 22. Rb7
{[%clk 00:05:45]} {[%emt 00:02:08]} Rb8 {[%clk 00:11:10]} {[%emt 00:01:35]} 23.
Rxb8 {[%clk 00:04:52]} {[%emt 00:01:04]} Ncxb8 {[%clk 00:11:12]} {[%emt
00:00:08]} 24. Kf4 {[%clk 00:02:13]} {[%emt 00:02:49]} Nc6 {[%clk 00:11:20]}
{[%emt 00:00:03]} 25. h4 {[%clk 00:02:00]} {[%emt 00:00:23]} fxe5+ {[%clk
00:09:25]} {[%emt 00:02:04]} 26. Nxe5 {[%clk 00:01:57]} {[%emt 00:00:13]} Ncxe5
{[%clk 00:09:34]} 27. dxe5 {[%clk 00:02:03]} {[%emt 00:00:06]} Nc5 {[%clk
00:09:43]} 28. Ke3 {[%clk 00:01:25]} {[%emt 00:00:48]} Nd3 {[%clk 00:07:47]}
{[%emt 00:02:07]} 29. f4 {[%clk 00:01:31]} {[%emt 00:00:04]} a5 {[%clk
00:07:38]} {[%emt 00:00:19]} 30. g3 {[%clk 00:01:23]} {[%emt 00:00:17]} Kd7
{[%clk 00:07:35]} {[%emt 00:00:13]} 31. Kd4 {[%clk 00:01:10]} {[%emt 00:00:23]}
Nc1 {[%clk 00:07:37]} {[%emt 00:00:08]} 32. a4 {[%clk 00:01:07]} {[%emt
00:00:13]} Ne2+ {[%clk 00:07:34]} {[%emt 00:00:13]} 33. Kc5 {[%clk 00:00:46]}
{[%emt 00:00:32]} Nxc3 {[%clk 00:07:41]} {[%emt 00:00:03]} 34. Kb6 {[%clk
00:00:15]} {[%emt 00:00:41]} Nxa4+ {[%clk 00:07:49]} {[%emt 00:00:01]} 35. Kxa5
{[%clk 00:00:24]} {[%emt 00:00:02]} Nc3 {[%clk 00:07:57]} 36. Kb4 {[%clk
00:00:28]} {[%emt 00:00:06]} Ne2 {[%clk 00:08:06]} {[%emt 00:00:02]} 37. Nf1
{[%clk 00:00:17]} {[%emt 00:00:20]} g6 {[%clk 00:07:18]} {[%emt 00:00:59]} 38.
Ka3 {[%clk 00:00:13]} {[%emt 00:00:13]} Kc6 {[%clk 00:06:07]} {[%emt 00:01:21]}
39. Kb4 {[%clk 00:00:13]} {[%emt 00:00:11]} Kb6 {[%clk 00:05:44]} {[%emt
00:00:32]} 40. Ne3 {[%clk 00:00:12]} {[%emt 00:00:11]} Nxg3 {[%clk 00:05:49]}
{[%emt 00:00:04]} 41. Ng4 {[%clk 00:00:13]} {[%emt 00:00:10]} Nf5 {[%clk
00:05:02]} {[%emt 00:00:57]} 42. Nf6 {[%clk 00:00:16]} {[%emt 00:00:07]} Nxh4
{[%clk 00:05:08]} {[%emt 00:00:04]} 43. Nxh7 {[%clk 00:00:22]} {[%emt
00:00:04]} Ng2 {[%clk 00:05:15]} {[%emt 00:00:03]} 44. Nf6 {[%clk 00:00:11]}
{[%emt 00:00:20]} Nxf4 {[%clk 00:05:21]} {[%emt 00:00:05]} 45. Nd7+ {[%clk
00:00:13]} {[%emt 00:00:08]} Kc6 {[%clk 00:05:29]} {[%emt 00:00:02]} 46. Nc5
{[%clk 00:00:18]} {[%emt 00:00:05]} Nd3+ {[%clk 00:05:29]} {[%emt 00:00:11]}
0-1